[Event "Titled Tuesday Blitz March 22 Late 2022"]
[White "Zhigalko, Sergei"]
[Black "Kovanova, Baira"]
[WhiteFideId "13502956"]
[BlackFideId "4164083"]
[WhiteElo "2662"]
[BlackElo "2190"]
[Result "1-0"]
[Round "01"]
[TimeControl "180+1"]
[Date "2022.03.22"]
[WhiteClock "0:00:37"]
[BlackClock "0:00:03"]

1. e4 {[%clk 0:02:57]}  e5 {[%clk 0:02:59]} 2. Nf3 {[%clk 0:02:57]}  Nc6 {[%clk 0:02:59]} 3. Bc4 {[%clk 0:02:55]}  Nf6 {[%clk 0:02:58]} 4. d3 {[%clk 0:02:55]}  Bc5 {[%clk 0:02:58]} 5. O-O {[%clk 0:02:49]}  d6 {[%clk 0:02:57]} 6. Nbd2 {[%clk 0:02:47]}  Na5 {[%clk 0:02:49]} 7. h3 {[%clk 0:02:40]}  Nxc4 {[%clk 0:02:34]} 8. Nxc4 {[%clk 0:02:41]}  Be6 {[%clk 0:02:34]} 9. b3 {[%clk 0:02:37]}  h6 {[%clk 0:02:33]} 10. Re1 {[%clk 0:02:35]}  O-O {[%clk 0:02:24]} 11. Bb2 {[%clk 0:02:31]}  Nh5 {[%clk 0:01:39]} 12. Nfxe5 {[%clk 0:01:48]}  Qh4 {[%clk 0:01:38]} 13. d4 {[%clk 0:01:47]}  dxe5 {[%clk 0:01:38]} 14. dxc5 {[%clk 0:01:44]}  Bxc4 {[%clk 0:00:55]} 15. bxc4 {[%clk 0:01:44]}  Qg5 {[%clk 0:00:27]} 16. Qg4 {[%clk 0:01:36]}  Rfe8 {[%clk 0:00:18]} 17. Rad1 {[%clk 0:01:29]}  Qxg4 {[%clk 0:00:12]} 18. hxg4 {[%clk 0:01:29]}  Nf6 {[%clk 0:00:12]} 19. f3 {[%clk 0:01:27]}  Kf8 {[%clk 0:00:12]} 20. Kf2 {[%clk 0:01:18]}  c6 {[%clk 0:00:10]} 21. Rd6 {[%clk 0:01:15]}  Re7 {[%clk 0:00:10]} 22. Red1 {[%clk 0:01:08]}  Rae8 {[%clk 0:00:10]} 23. Bc1 {[%clk 0:01:07]}  Re6 {[%clk 0:00:08]} 24. g5 {[%clk 0:01:05]}  hxg5 {[%clk 0:00:08]} 25. Bxg5 {[%clk 0:01:06]}  Nh7 {[%clk 0:00:09]} 26. Be3 {[%clk 0:01:05]}  Nf6 {[%clk 0:00:08]} 27. g4 {[%clk 0:01:04]}  Ke7 {[%clk 0:00:08]} 28. Bg5 {[%clk 0:01:02]}  Rxd6 {[%clk 0:00:07]} 29. cxd6+ {[%clk 0:00:55]}  Kd7 {[%clk 0:00:07]} 30. Bxf6 {[%clk 0:00:56]}  gxf6 {[%clk 0:00:07]} 31. c5 {[%clk 0:00:57]}  Rh8 {[%clk 0:00:07]} 32. Rb1 {[%clk 0:00:56]}  Kc8 {[%clk 0:00:07]} 33. Kg3 {[%clk 0:00:54]}  Rd8 {[%clk 0:00:03]} 34. Rh1 {[%clk 0:00:43]}  b6 {[%clk 0:00:03]} 35. Rh6 {[%clk 0:00:43]}  bxc5 {[%clk 0:00:03]} 36. Rxf6 {[%clk 0:00:43]}  Kd7 {[%clk 0:00:03]} 37. g5 {[%clk 0:00:37]} 1-0


[Site "https://www.chess.com"]

[Event "Titled Tuesday Blitz March 22 Late 2022"]
[White "Abdrlauf, Elham"]
[Black "Domingo Nunez, Alejandro"]
[WhiteFideId "1533533"]
[BlackFideId "22245561"]
[WhiteElo "2334"]
[BlackElo "2215"]
[Result "1-0"]
[Round "02"]
[TimeControl "180+1"]
[Date "2022.03.22"]
[WhiteClock "0:00:24"]
[BlackClock "0:00:01"]

1. Nf3 {[%clk 0:02:57]}  g6 {[%clk 0:03:00]} 2. d4 {[%clk 0:02:52]}  Bg7 {[%clk 0:03:01]} 3. e4 {[%clk 0:02:52]}  c6 {[%clk 0:03:01]} 4. Nc3 {[%clk 0:02:52]}  d5 {[%clk 0:03:01]} 5. e5 {[%clk 0:02:50]}  f6 {[%clk 0:03:02]} 6. exf6 {[%clk 0:02:50]}  exf6 {[%clk 0:03:02]} 7. Bd3 {[%clk 0:02:48]}  Nh6 {[%clk 0:03:00]} 8. O-O {[%clk 0:02:46]}  O-O {[%clk 0:03:01]} 9. h3 {[%clk 0:02:46]}  Na6 {[%clk 0:03:00]} 10. Re1 {[%clk 0:02:45]}  Nc7 {[%clk 0:03:00]} 11. Bf4 {[%clk 0:02:45]}  Nf7 {[%clk 0:02:59]} 12. Qd2 {[%clk 0:02:44]}  Ne6 {[%clk 0:02:58]} 13. Bg3 {[%clk 0:02:40]}  Bd7 {[%clk 0:02:54]} 14. Ne2 {[%clk 0:02:36]}  Bh6 {[%clk 0:02:51]} 15. Qb4 {[%clk 0:02:09]}  Qb6 {[%clk 0:02:50]} 16. Qe7 {[%clk 0:01:48]}  Rad8 {[%clk 0:02:33]} 17. Nc3 {[%clk 0:01:38]}  Nf4 {[%clk 0:00:44]} 18. Na4 {[%clk 0:01:11]}  Qa5 {[%clk 0:00:33]} 19. Nc5 {[%clk 0:01:11]}  Bc8 {[%clk 0:00:29]} 20. a3 {[%clk 0:00:46]}  Nh5 {[%clk 0:00:16]} 21. Bc7 {[%clk 0:00:44]}  Rde8 {[%clk 0:00:11]} 22. Bxa5 {[%clk 0:00:36]}  Rxe7 {[%clk 0:00:11]} 23. Rxe7 {[%clk 0:00:37]}  b6 {[%clk 0:00:12]} 24. Rxa7 {[%clk 0:00:37]}  bxc5 {[%clk 0:00:10]} 25. dxc5 {[%clk 0:00:37]}  Nf4 {[%clk 0:00:11]} 26. Bd2 {[%clk 0:00:36]}  Ne5 {[%clk 0:00:07]} 27. Bxf4 {[%clk 0:00:36]}  Bxf4 {[%clk 0:00:07]} 28. Nxe5 {[%clk 0:00:37]}  fxe5 {[%clk 0:00:07]} 29. b4 {[%clk 0:00:29]}  e4 {[%clk 0:00:07]} 30. Ba6 {[%clk 0:00:30]}  Be5 {[%clk 0:00:05]} 31. Rf1 {[%clk 0:00:27]}  Be6 {[%clk 0:00:05]} 32. Re7 {[%clk 0:00:25]}  Rf6 {[%clk 0:00:05]} 33. Bc8 {[%clk 0:00:25]}  Bxc8 {[%clk 0:00:01]} 34. Rxe5 {[%clk 0:00:26]}  Kf7 {[%clk 0:00:01]} 35. f3 {[%clk 0:00:24]}  Ba6 {[%clk 0:00:01]} 36. Rf2 {[%clk 0:00:24]} 1-0


[Site "https://www.chess.com"]

[Event "Titled Tuesday Blitz March 22 Late 2022"]
[White "Akobian, Varuzhan"]
[Black "Krishnan, Varun"]
[WhiteFideId "13300580"]
[BlackFideId "5054508"]
[WhiteElo "2634"]
[BlackElo "2595"]
[Result "0-1"]
[Round "02"]
[TimeControl "180+1"]
[Date "2022.03.22"]
[WhiteClock "0:00:04"]
[BlackClock "0:00:06"]

1. d4 {[%clk 0:03:00]}  d5 {[%clk 0:02:59]} 2. c4 {[%clk 0:03:00]}  e6 {[%clk 0:02:59]} 3. Nc3 {[%clk 0:03:00]}  Be7 {[%clk 0:02:59]} 4. cxd5 {[%clk 0:02:58]}  exd5 {[%clk 0:02:59]} 5. Bf4 {[%clk 0:02:59]}  c6 {[%clk 0:02:57]} 6. Qc2 {[%clk 0:02:58]}  Bd6 {[%clk 0:02:54]} 7. Bxd6 {[%clk 0:02:57]}  Qxd6 {[%clk 0:02:55]} 8. e3 {[%clk 0:02:57]}  Ne7 {[%clk 0:02:52]} 9. Bd3 {[%clk 0:02:57]}  g6 {[%clk 0:02:49]} 10. f3 {[%clk 0:02:55]}  O-O {[%clk 0:02:46]} 11. Nge2 {[%clk 0:02:54]}  a5 {[%clk 0:02:42]} 12. O-O {[%clk 0:02:51]}  b5 {[%clk 0:02:40]} 13. e4 {[%clk 0:02:48]}  a4 {[%clk 0:02:30]} 14. e5 {[%clk 0:02:41]}  Qd8 {[%clk 0:02:29]} 15. Ng3 {[%clk 0:02:35]}  Qb6 {[%clk 0:02:20]} 16. Nce2 {[%clk 0:02:35]}  Na6 {[%clk 0:02:19]} 17. a3 {[%clk 0:02:34]}  c5 {[%clk 0:02:19]} 18. Qd2 {[%clk 0:02:24]}  cxd4 {[%clk 0:02:13]} 19. Kh1 {[%clk 0:02:22]}  Nc6 {[%clk 0:01:55]} 20. f4 {[%clk 0:02:21]}  Nc5 {[%clk 0:01:55]} 21. Rad1 {[%clk 0:02:13]}  Ba6 {[%clk 0:01:50]} 22. f5 {[%clk 0:01:58]}  Nxd3 {[%clk 0:01:40]} 23. Qh6 {[%clk 0:01:46]}  Ncxe5 {[%clk 0:00:46]} 24. Nh5 {[%clk 0:01:29]}  gxh5 {[%clk 0:00:31]} 25. Qxb6 {[%clk 0:01:16]}  b4 {[%clk 0:00:30]} 26. Nxd4 {[%clk 0:01:07]}  Nxb2 {[%clk 0:00:27]} 27. Qxb4 {[%clk 0:00:55]}  Nxd1 {[%clk 0:00:25]} 28. Rxd1 {[%clk 0:00:55]}  Nd3 {[%clk 0:00:25]} 29. Qd2 {[%clk 0:00:48]}  Kh8 {[%clk 0:00:20]} 30. h3 {[%clk 0:00:47]}  Rae8 {[%clk 0:00:19]} 31. Rb1 {[%clk 0:00:40]}  Bc4 {[%clk 0:00:11]} 32. Qh6 {[%clk 0:00:37]}  Rg8 {[%clk 0:00:11]} 33. Qf6+ {[%clk 0:00:26]}  Rg7 {[%clk 0:00:11]} 34. Rb7 {[%clk 0:00:19]}  Nf2+ {[%clk 0:00:11]} 35. Kh2 {[%clk 0:00:18]}  Ne4 {[%clk 0:00:11]} 36. Qh6 {[%clk 0:00:16]}  Reg8 {[%clk 0:00:11]} 37. g4 {[%clk 0:00:11]}  hxg4 {[%clk 0:00:11]} 38. h4 {[%clk 0:00:08]}  g3+ {[%clk 0:00:10]} 39. Kg1 {[%clk 0:00:08]}  g2 {[%clk 0:00:10]} 40. Ne6 {[%clk 0:00:05]}  fxe6 {[%clk 0:00:07]} 41. Rxg7 {[%clk 0:00:03]}  Rxg7 {[%clk 0:00:08]} 42. f6 {[%clk 0:00:04]}  Rf7 {[%clk 0:00:06]} 0-1


[Site "https://www.chess.com"]

[Event "Titled Tuesday Blitz March 22 Late 2022"]
[White "Atzl, Florian"]
[Black "Swicarz, Maciej"]
[WhiteFideId "1635891"]
[BlackFideId "1113585"]
[WhiteElo "2085"]
[BlackElo "2057"]
[Result "1-0"]
[Round "02"]
[TimeControl "180+1"]
[Date "2022.03.22"]
[WhiteClock "0:01:30"]
[BlackClock "0:01:25"]

1. e4 {[%clk 0:03:00]}  c5 {[%clk 0:02:59]} 2. Nf3 {[%clk 0:03:01]}  d6 {[%clk 0:02:58]} 3. d4 {[%clk 0:03:01]}  cxd4 {[%clk 0:02:59]} 4. Nxd4 {[%clk 0:03:01]}  Nf6 {[%clk 0:02:59]} 5. Nc3 {[%clk 0:03:02]}  a6 {[%clk 0:03:00]} 6. h3 {[%clk 0:03:02]}  e5 {[%clk 0:02:58]} 7. Nde2 {[%clk 0:03:02]}  h5 {[%clk 0:02:58]} 8. g3 {[%clk 0:03:02]}  Qc7 {[%clk 0:02:52]} 9. Bg2 {[%clk 0:02:59]}  b5 {[%clk 0:02:52]} 10. Bg5 {[%clk 0:02:52]}  Nbd7 {[%clk 0:02:48]} 11. Qd2 {[%clk 0:02:38]}  Bb7 {[%clk 0:02:48]} 12. Rd1 {[%clk 0:02:32]}  Rc8 {[%clk 0:02:44]} 13. a3 {[%clk 0:02:24]}  Qc4 {[%clk 0:02:39]} 14. Qd3 {[%clk 0:02:08]}  Qc6 {[%clk 0:02:20]} 15. O-O {[%clk 0:02:07]}  Be7 {[%clk 0:02:10]} 16. Kh1 {[%clk 0:02:05]}  Nc5 {[%clk 0:02:08]} 17. Qe3 {[%clk 0:01:59]}  Nfxe4 {[%clk 0:01:50]} 18. Bxe7 {[%clk 0:01:49]}  Kxe7 {[%clk 0:01:49]} 19. Nd5+ {[%clk 0:01:43]}  Ke6 {[%clk 0:01:42]} 20. Bxe4 {[%clk 0:01:39]}  Nxe4 {[%clk 0:01:38]} 21. Qxe4 {[%clk 0:01:40]}  Qxd5 {[%clk 0:01:25]} 22. Rxd5 {[%clk 0:01:30]}  Bxd5 {[%clk 0:01:25]} 23. Nf4+ {[%clk 0:01:30]} 1-0


[Site "https://www.chess.com"]

[Event "Titled Tuesday Blitz March 22 Late 2022"]
[White "Aydin, Gulenay"]
[Black "Grigorov, Grigor"]
[WhiteFideId "34557431"]
[BlackFideId "2907313"]
[WhiteElo "1429"]
[BlackElo "2510"]
[Result "0-1"]
[Round "02"]
[TimeControl "180+1"]
[Date "2022.03.22"]
[WhiteClock "0:00:11"]
[BlackClock "0:00:30"]

1. e4 {[%clk 0:03:00]}  c6 {[%clk 0:02:53]} 2. d4 {[%clk 0:03:00]}  d5 {[%clk 0:02:53]} 3. Nc3 {[%clk 0:02:59]}  dxe4 {[%clk 0:02:53]} 4. Nxe4 {[%clk 0:03:00]}  Nf6 {[%clk 0:02:53]} 5. Nxf6+ {[%clk 0:02:58]}  exf6 {[%clk 0:02:54]} 6. c3 {[%clk 0:02:57]}  Bd6 {[%clk 0:02:54]} 7. Bd3 {[%clk 0:02:58]}  O-O {[%clk 0:02:54]} 8. Qc2 {[%clk 0:02:58]}  Re8+ {[%clk 0:02:54]} 9. Ne2 {[%clk 0:02:59]}  h5 {[%clk 0:02:52]} 10. O-O {[%clk 0:02:53]}  h4 {[%clk 0:02:52]} 11. Bf4 {[%clk 0:02:44]}  Bxf4 {[%clk 0:02:35]} 12. Nxf4 {[%clk 0:02:45]}  Qd6 {[%clk 0:02:35]} 13. Qd2 {[%clk 0:02:36]}  Nd7 {[%clk 0:02:32]} 14. Rae1 {[%clk 0:02:34]}  Rd8 {[%clk 0:02:29]} 15. Qe3 {[%clk 0:02:12]}  Nf8 {[%clk 0:02:27]} 16. Qf3 {[%clk 0:01:49]}  g6 {[%clk 0:02:19]} 17. Re3 {[%clk 0:01:23]}  Bd7 {[%clk 0:02:18]} 18. Rfe1 {[%clk 0:01:22]}  Re8 {[%clk 0:02:02]} 19. Bc4 {[%clk 0:01:12]}  Kg7 {[%clk 0:01:55]} 20. Nd3 {[%clk 0:01:01]}  Nh7 {[%clk 0:01:39]} 21. Nc5 {[%clk 0:00:57]}  Ng5 {[%clk 0:01:35]} 22. Qd1 {[%clk 0:00:54]}  b6 {[%clk 0:01:34]} 23. Nxd7 {[%clk 0:00:49]}  Qxd7 {[%clk 0:01:33]} 24. f4 {[%clk 0:00:38]}  Nh7 {[%clk 0:01:29]} 25. Qf3 {[%clk 0:00:35]}  Rxe3 {[%clk 0:01:27]} 26. Qxe3 {[%clk 0:00:36]}  Rd8 {[%clk 0:01:00]} 27. Qf2 {[%clk 0:00:27]}  h3 {[%clk 0:00:44]} 28. gxh3 {[%clk 0:00:19]}  Qxh3 {[%clk 0:00:43]} 29. Re7 {[%clk 0:00:19]}  Rd7 {[%clk 0:00:40]} 30. Qe2 {[%clk 0:00:15]}  Rxe7 {[%clk 0:00:34]} 31. Qxe7 {[%clk 0:00:16]}  Qg4+ {[%clk 0:00:33]} 32. Kh1 {[%clk 0:00:15]}  Qxf4 {[%clk 0:00:33]} 33. Qxf7+ {[%clk 0:00:13]}  Kh6 {[%clk 0:00:33]} 34. Qe6 {[%clk 0:00:11]}  Qf3+ {[%clk 0:00:30]} 35. Kg1 {[%clk 0:00:11]}  Ng5 {[%clk 0:00:30]} 0-1


[Site "https://www.chess.com"]

[Event "Titled Tuesday Blitz March 22 Late 2022"]
[White "Baches Garcia, Guillermo"]
[Black "Rudykh, Stepan"]
[WhiteFideId "2209764"]
[BlackFideId "4180321"]
[WhiteElo "2468"]
[BlackElo "2145"]
[Result "1-0"]
[Round "02"]
[TimeControl "180+1"]
[Date "2022.03.22"]
[WhiteClock "0:02:07"]
[BlackClock "0:01:28"]

1. e4 {[%clk 0:03:00]}  e6 {[%clk 0:03:00]} 2. Nf3 {[%clk 0:03:00]}  d5 {[%clk 0:03:00]} 3. exd5 {[%clk 0:03:01]}  exd5 {[%clk 0:03:01]} 4. d4 {[%clk 0:03:02]}  Nf6 {[%clk 0:03:01]} 5. Bd3 {[%clk 0:03:02]}  c5 {[%clk 0:03:01]} 6. O-O {[%clk 0:03:02]}  c4 {[%clk 0:03:01]} 7. Re1+ {[%clk 0:03:03]}  Be7 {[%clk 0:03:01]} 8. Bf1 {[%clk 0:03:03]}  O-O {[%clk 0:03:02]} 9. Nc3 {[%clk 0:03:03]}  Nc6 {[%clk 0:03:01]} 10. Bg5 {[%clk 0:03:03]}  Bg4 {[%clk 0:02:58]} 11. h3 {[%clk 0:03:01]}  Bh5 {[%clk 0:02:58]} 12. g4 {[%clk 0:02:57]}  Bg6 {[%clk 0:02:57]} 13. Ne5 {[%clk 0:02:55]}  Re8 {[%clk 0:02:40]} 14. Bg2 {[%clk 0:02:41]}  Qb6 {[%clk 0:01:56]} 15. Bxf6 {[%clk 0:02:25]}  gxf6 {[%clk 0:01:47]} 16. Nxd5 {[%clk 0:02:19]}  Qxb2 {[%clk 0:01:32]} 17. Nxc6 {[%clk 0:02:12]}  bxc6 {[%clk 0:01:30]} 18. Nxe7+ {[%clk 0:02:10]}  Rxe7 {[%clk 0:01:29]} 19. Rxe7 {[%clk 0:02:08]}  Qxd4 {[%clk 0:01:28]} 20. Qxd4 {[%clk 0:02:07]} 1-0


[Site "https://www.chess.com"]

[Event "Titled Tuesday Blitz March 22 Late 2022"]
[White "Barp, Alberto"]
[Black "Jobava, Baadur"]
[WhiteFideId "872555"]
[BlackFideId "13601520"]
[WhiteElo "2229"]
[BlackElo "2617"]
[Result "0-1"]
[Round "02"]
[TimeControl "180+1"]
[Date "2022.03.22"]
[WhiteClock "0:00:40"]
[BlackClock "0:02:16"]

1. d4 {[%clk 0:03:00]}  c6 {[%clk 0:03:00]} 2. c4 {[%clk 0:02:56]}  d5 {[%clk 0:03:01]} 3. cxd5 {[%clk 0:02:56]}  cxd5 {[%clk 0:03:02]} 4. Bf4 {[%clk 0:02:55]}  Nc6 {[%clk 0:03:02]} 5. e3 {[%clk 0:02:56]}  f6 {[%clk 0:03:02]} 6. Nc3 {[%clk 0:02:54]}  e6 {[%clk 0:03:00]} 7. Bd3 {[%clk 0:02:35]}  Bd7 {[%clk 0:02:58]} 8. Rc1 {[%clk 0:02:33]}  Bb4 {[%clk 0:02:52]} 9. Qh5+ {[%clk 0:02:22]}  Kf8 {[%clk 0:02:52]} 10. a3 {[%clk 0:02:14]}  Bxc3+ {[%clk 0:02:50]} 11. Rxc3 {[%clk 0:02:14]}  Nge7 {[%clk 0:02:51]} 12. Nf3 {[%clk 0:02:10]}  Be8 {[%clk 0:02:50]} 13. Qh3 {[%clk 0:02:09]}  Qd7 {[%clk 0:02:48]} 14. O-O {[%clk 0:02:02]}  Bg6 {[%clk 0:02:48]} 15. Bxg6 {[%clk 0:01:57]}  Nxg6 {[%clk 0:02:49]} 16. Bg3 {[%clk 0:01:58]}  Kf7 {[%clk 0:02:49]} 17. Rfc1 {[%clk 0:01:57]}  Rac8 {[%clk 0:02:48]} 18. b4 {[%clk 0:01:51]}  a6 {[%clk 0:02:34]} 19. Nd2 {[%clk 0:01:42]}  h5 {[%clk 0:02:31]} 20. f3 {[%clk 0:01:40]}  h4 {[%clk 0:02:30]} 21. Bf2 {[%clk 0:01:40]}  Nce7 {[%clk 0:02:28]} 22. Nb3 {[%clk 0:01:30]}  b6 {[%clk 0:02:26]} 23. Be1 {[%clk 0:01:20]}  Rxc3 {[%clk 0:02:25]} 24. Rxc3 {[%clk 0:01:20]}  Rc8 {[%clk 0:02:26]} 25. g4 {[%clk 0:00:42]}  hxg3 {[%clk 0:02:22]} 26. hxg3 {[%clk 0:00:42]}  Rxc3 {[%clk 0:02:22]} 27. Bxc3 {[%clk 0:00:43]}  Qa4 {[%clk 0:02:22]} 28. Nd2 {[%clk 0:00:40]}  Qc2 {[%clk 0:02:16]} 0-1


[Site "https://www.chess.com"]

[Event "Titled Tuesday Blitz March 22 Late 2022"]
[White "Bernal Moro, Luis Javier"]
[Black "Martin Barcelo, Carles"]
[WhiteFideId "2200236"]
[BlackFideId "24561444"]
[WhiteElo "2373"]
[BlackElo "1875"]
[Result "1-0"]
[Round "02"]
[TimeControl "180+1"]
[Date "2022.03.22"]
[WhiteClock "0:01:10"]
[BlackClock "0:00:01"]

1. Nf3 {[%clk 0:02:59]}  Nf6 {[%clk 0:02:59]} 2. c4 {[%clk 0:02:59]}  g6 {[%clk 0:02:58]} 3. Nc3 {[%clk 0:02:59]}  Bg7 {[%clk 0:02:58]} 4. e4 {[%clk 0:03:00]}  d6 {[%clk 0:02:57]} 5. d4 {[%clk 0:03:00]}  O-O {[%clk 0:02:57]} 6. Be2 {[%clk 0:03:00]}  e5 {[%clk 0:02:57]} 7. O-O {[%clk 0:03:00]}  Bg4 {[%clk 0:02:57]} 8. d5 {[%clk 0:02:53]}  a5 {[%clk 0:02:55]} 9. Be3 {[%clk 0:02:53]}  Na6 {[%clk 0:02:55]} 10. Ne1 {[%clk 0:02:51]}  Bd7 {[%clk 0:02:55]} 11. Nd3 {[%clk 0:02:50]}  b6 {[%clk 0:02:54]} 12. f3 {[%clk 0:02:33]}  Nc5 {[%clk 0:02:50]} 13. Nf2 {[%clk 0:02:32]}  Nh5 {[%clk 0:02:48]} 14. g3 {[%clk 0:02:28]}  Nf6 {[%clk 0:02:39]} 15. b3 {[%clk 0:02:26]}  Ne8 {[%clk 0:02:31]} 16. Qd2 {[%clk 0:02:11]}  f5 {[%clk 0:02:31]} 17. exf5 {[%clk 0:02:11]}  gxf5 {[%clk 0:02:30]} 18. f4 {[%clk 0:02:12]}  e4 {[%clk 0:02:00]} 19. Rae1 {[%clk 0:02:07]}  Nf6 {[%clk 0:01:59]} 20. Kh1 {[%clk 0:02:06]}  Kh8 {[%clk 0:01:58]} 21. Bd4 {[%clk 0:02:05]}  Qe7 {[%clk 0:01:47]} 22. Nfd1 {[%clk 0:02:03]}  Qf7 {[%clk 0:01:35]} 23. Ne3 {[%clk 0:02:01]}  Rae8 {[%clk 0:01:35]} 24. Rg1 {[%clk 0:02:01]}  Re7 {[%clk 0:01:26]} 25. h3 {[%clk 0:01:51]}  Nh5 {[%clk 0:01:14]} 26. Rg2 {[%clk 0:01:44]}  Rg8 {[%clk 0:00:42]} 27. Reg1 {[%clk 0:01:43]}  Rf8 {[%clk 0:00:42]} 28. Rh2 {[%clk 0:01:36]}  Rg8 {[%clk 0:00:28]} 29. Ncd1 {[%clk 0:01:32]}  Bc8 {[%clk 0:00:16]} 30. Nf2 {[%clk 0:01:30]}  Bd7 {[%clk 0:00:15]} 31. Bxh5 {[%clk 0:01:26]}  Qxh5 {[%clk 0:00:14]} 32. g4 {[%clk 0:01:26]}  Qf7 {[%clk 0:00:09]} 33. gxf5 {[%clk 0:01:24]}  Bxf5 {[%clk 0:00:06]} 34. Rxg7 {[%clk 0:01:24]}  Rxg7 {[%clk 0:00:05]} 35. Rg2 {[%clk 0:01:24]}  Bg6 {[%clk 0:00:01]} 36. f5 {[%clk 0:01:23]}  Re5 {[%clk 0:00:02]} 37. Bxe5 {[%clk 0:01:22]}  dxe5 {[%clk 0:00:02]} 38. fxg6 {[%clk 0:01:22]}  Rxg6 {[%clk 0:00:02]} 39. Nfg4 {[%clk 0:01:16]}  Qf3 {[%clk 0:00:01]} 40. Kh2 {[%clk 0:01:10]} 1-0


[Site "https://www.chess.com"]

[Event "Titled Tuesday Blitz March 22 Late 2022"]
[White "Bluebaum, Matthias"]
[Black "Hamitevici, Vladimir"]
[WhiteFideId "24651516"]
[BlackFideId "13902393"]
[WhiteElo "2550"]
[BlackElo "2359"]
[Result "1/2-1/2"]
[Round "02"]
[TimeControl "180+1"]
[Date "2022.03.22"]
[WhiteClock "0:00:19"]
[BlackClock "0:00:19"]

1. b3 {[%clk 0:03:00]}  b6 {[%clk 0:02:59]} 2. Bb2 {[%clk 0:03:00]}  Bb7 {[%clk 0:03:00]} 3. Nf3 {[%clk 0:02:59]}  Nf6 {[%clk 0:03:00]} 4. g3 {[%clk 0:02:59]}  g6 {[%clk 0:03:00]} 5. Bg2 {[%clk 0:03:00]}  Bg7 {[%clk 0:03:01]} 6. c4 {[%clk 0:03:00]}  O-O {[%clk 0:02:59]} 7. O-O {[%clk 0:03:01]}  e6 {[%clk 0:02:57]} 8. d4 {[%clk 0:03:01]}  d6 {[%clk 0:02:52]} 9. Nc3 {[%clk 0:03:01]}  Ne4 {[%clk 0:02:51]} 10. Qc2 {[%clk 0:03:01]}  Nxc3 {[%clk 0:02:50]} 11. Bxc3 {[%clk 0:03:02]}  Nd7 {[%clk 0:02:40]} 12. e4 {[%clk 0:03:02]}  e5 {[%clk 0:02:29]} 13. Rad1 {[%clk 0:02:58]}  Qe7 {[%clk 0:02:25]} 14. Rfe1 {[%clk 0:02:55]}  h6 {[%clk 0:02:25]} 15. Qb2 {[%clk 0:02:38]}  Rfe8 {[%clk 0:02:16]} 16. Nd2 {[%clk 0:02:34]}  exd4 {[%clk 0:02:12]} 17. Bxd4 {[%clk 0:02:35]}  Bxd4 {[%clk 0:02:11]} 18. Qxd4 {[%clk 0:02:36]}  Qe5 {[%clk 0:01:59]} 19. Qe3 {[%clk 0:02:31]}  Qg5 {[%clk 0:01:45]} 20. Qc3 {[%clk 0:02:10]}  Qe5 {[%clk 0:01:42]} 21. Qc1 {[%clk 0:02:09]}  Nf6 {[%clk 0:01:37]} 22. Nb1 {[%clk 0:01:36]}  Qg5 {[%clk 0:01:28]} 23. Nc3 {[%clk 0:01:30]}  Qxc1 {[%clk 0:01:27]} 24. Rxc1 {[%clk 0:01:31]}  a6 {[%clk 0:01:10]} 25. Nd5 {[%clk 0:01:24]}  Nxd5 {[%clk 0:01:08]} 26. cxd5 {[%clk 0:01:22]}  Re7 {[%clk 0:01:08]} 27. Rc4 {[%clk 0:01:14]}  Bxd5 {[%clk 0:01:04]} 28. Rc3 {[%clk 0:01:04]}  Rae8 {[%clk 0:00:52]} 29. Rec1 {[%clk 0:01:01]}  Bxe4 {[%clk 0:00:52]} 30. Rxc7 {[%clk 0:00:59]}  Bxg2 {[%clk 0:00:47]} 31. Kxg2 {[%clk 0:00:59]}  Rxc7 {[%clk 0:00:35]} 32. Rxc7 {[%clk 0:01:00]}  Re2 {[%clk 0:00:36]} 33. Rc6 {[%clk 0:00:43]}  Rxa2 {[%clk 0:00:33]} 34. Rxb6 {[%clk 0:00:43]}  d5 {[%clk 0:00:30]} 35. Kf3 {[%clk 0:00:39]}  Rb2 {[%clk 0:00:28]} 36. Ke3 {[%clk 0:00:38]}  Kg7 {[%clk 0:00:26]} 37. h4 {[%clk 0:00:39]}  h5 {[%clk 0:00:26]} 38. f3 {[%clk 0:00:37]}  Rg2 {[%clk 0:00:23]} 39. Kf4 {[%clk 0:00:37]}  Rb2 {[%clk 0:00:23]} 40. Ke5 {[%clk 0:00:36]}  Rg2 {[%clk 0:00:21]} 41. Kf4 {[%clk 0:00:36]}  Rb2 {[%clk 0:00:21]} 42. Ke5 {[%clk 0:00:33]}  Rg2 {[%clk 0:00:19]} 43. Kf4 {[%clk 0:00:19]} 1/2-1/2


[Site "https://www.chess.com"]

[Event "Titled Tuesday Blitz March 22 Late 2022"]
[White "Boruchovsky, Avital"]
[Black "Jaskolka, Tomasz"]
[WhiteFideId "2800055"]
[BlackFideId "1170791"]
[WhiteElo "2469"]
[BlackElo "2073"]
[Result "1-0"]
[Round "02"]
[TimeControl "180+1"]
[Date "2022.03.22"]
[WhiteClock "0:02:31"]
[BlackClock "0:02:10"]

1. c4 {[%clk 0:02:53]}  e6 {[%clk 0:02:56]} 2. Nc3 {[%clk 0:02:53]}  f5 {[%clk 0:02:55]} 3. g3 {[%clk 0:02:51]}  Nf6 {[%clk 0:02:56]} 4. Bg2 {[%clk 0:02:51]}  Be7 {[%clk 0:02:56]} 5. d3 {[%clk 0:02:48]}  O-O {[%clk 0:02:56]} 6. e4 {[%clk 0:02:48]}  fxe4 {[%clk 0:02:53]} 7. dxe4 {[%clk 0:02:49]}  d6 {[%clk 0:02:48]} 8. Nge2 {[%clk 0:02:44]}  Nc6 {[%clk 0:02:48]} 9. O-O {[%clk 0:02:43]}  e5 {[%clk 0:02:46]} 10. h3 {[%clk 0:02:40]}  Be6 {[%clk 0:02:46]} 11. Nd5 {[%clk 0:02:40]}  Qd7 {[%clk 0:02:39]} 12. Kh2 {[%clk 0:02:40]}  a6 {[%clk 0:02:18]} 13. Be3 {[%clk 0:02:38]}  b5 {[%clk 0:02:17]} 14. Rc1 {[%clk 0:02:35]}  h6 {[%clk 0:02:10]} 15. cxb5 {[%clk 0:02:32]}  axb5 {[%clk 0:02:10]} 16. Rxc6 {[%clk 0:02:31]} 1-0


[Site "https://www.chess.com"]